bitfinex/quotes_SOLUSD_20250508
["timestamp","ask_amount","ask_price","bid_price","bid_amount"]
[1746737079894,27.80418526,161.85,161.77,18.64964886]
[1746737082983,53.80418526,161.85,161.77,18.64964886]
[1746737084997,73.26665049,161.85,161.77,18.64964886]
[1746737085195,47.26665049,161.85,161.77,18.64964886]
[1746737085394,47.26665049,161.85,161.76,87.5173561]
[1746737085395,19.46246523,161.85,161.79,18.64964886]
[1746737085706,19.46246523,161.85,161.79,47.93110496]
[1746737086007,19.46246523,161.85,161.81,18.64964886]
[1746737087306,27.80008648,161.87,161.81,18.64964886]
[1746737096093,10.0,161.82,161.72,7.6211]
[1746737096320,26.0,161.84,161.72,7.6211]
[1746737096611,25.34,161.82,161.73,18.64964886]
[1746737097019,47.27767133,161.81,161.73,18.64964886]
[1746737097617,75.08806623,161.81,161.73,18.64964886]
[1746737099088,69.52598725,161.81,161.73,18.64964886]
[1746737100497,69.52598725,161.81,161.74,0.14216157]
[1746737103930,69.52598725,161.81,161.74,50.14216157]
[1746737104224,69.52598725,161.81,161.76,0.14216157]
[1746737105525,27.8103949,161.81,161.75,18.64964886]
[1746737105894,27.8103949,161.81,161.74,50.14216157]
[1746737105895,27.8103949,161.81,161.72,7.6211]
[1746737106102,27.8103949,161.81,161.73,18.64964886]
[1746737107022,26.0,161.78,161.66,7.9595]
[1746737107320,36.0,161.78,161.66,7.9595]
[1746737107620,47.2981328,161.74,161.61,57.9595]
[1746737107936,47.2981328,161.74,161.62,18.79181043]
[1746737108224,47.2981328,161.74,161.61,57.9595]
[1746737108399,47.2981328,161.74,161.61,83.9595]
[1746737108598,47.2981328,161.74,161.62,18.64964886]
[1746737109321,47.2981328,161.74,161.61,7.9595]
[1746737109322,26.0,161.71,161.61,7.9595]
[1746737109620,47.30983301,161.7,161.62,18.64964886]
[1746737110118,47.30983301,161.7,161.63,0.14216157]
[1746737110326,47.30983301,161.7,161.64,18.64964886]
[1746737110699,75.13914655,161.7,161.64,18.64964886]
[1746737111929,55.65862708,161.7,161.64,18.64964886]
[1746737112635,55.65862708,161.7,161.62,18.79181043]
[1746737112942,55.65862708,161.7,161.62,18.64964886]
[1746737118237,55.65862708,161.7,161.61,7.9595]
[1746737118402,55.65862708,161.7,161.57,50.0]
[1746737118726,55.65862708,161.7,161.58,18.64964886]
[1746737119118,26.0,161.67,161.58,18.64964886]
[1746737119425,47.3273942,161.64,161.58,18.64964886]
[1746737119733,75.16703785,161.64,161.53,52.84894886]
[1746737119933,75.16703785,161.64,161.53,26.84894886]
[1746737120342,26.0,161.61,161.53,8.1993]
[1746737121508,47.3391089,161.6,161.53,8.1993]
[1746737121706,47.3391089,161.6,161.53,1.6288]
[1746737122015,26.0,161.57,161.53,1.6288]
[1746737122936,75.18564355,161.6,161.53,1.6288]
[1746737123122,75.18564355,161.6,161.54,0.14216157]
[1746737123634,69.61633662,161.6,161.54,0.14216157]
[1746737124136,69.61633662,161.6,161.54,44.79181043]
[1746737124137,13.92326732,161.6,161.54,44.79181043]
[1746737125527,27.84481158,161.61,161.54,44.79181043]
[1746737127717,27.84481158,161.61,161.57,0.14216157]
[1746737128124,27.84481158,161.61,161.56,18.64964886]
[1746737129232,27.84481158,161.61,161.54,18.64964886]
[1746737131432,27.84481158,161.61,161.55,0.14216157]
[1746737131826,47.33032233,161.63,161.55,0.14216157]
[1746737132030,47.33032233,161.63,161.59,18.79181043]
[1746737132326,19.48895625,161.63,161.59,18.79181043]
[1746737132534,19.48895625,161.63,161.61,18.79181043]
[1746737133209,19.48895625,161.63,161.61,18.64964886]
[1746737133632,53.83964365,161.64,161.59,18.64964886]
[1746737134111,53.83964365,161.64,161.56,18.79181043]
[1746737135422,53.83964365,161.64,161.56,18.64964886]
[1746737135746,73.3273942,161.64,161.56,18.64964886]
[1746737136832,101.16703785,161.64,161.56,18.64964886]
[1746737137139,125.40703785,161.64,161.56,18.64964886]
[1746737137336,26.0,161.61,161.52,18.64964886]
[1746737137717,137.38884307,161.64,161.52,18.64964886]
[1746737137718,26.0,161.57,161.52,18.64964886]
[1746737138945,19.49740034,161.56,161.52,18.64964886]
[1746737140741,19.49740034,161.56,161.5,6.412]
[1746737140742,47.3508294,161.56,161.5,6.412]
[1746737140953,47.3508294,161.56,161.48,18.64964886]
[1746737142956,75.20425846,161.56,161.48,18.64964886]
[1746737143760,75.20425846,161.56,161.49,0.14216157]
[1746737144946,69.63357265,161.56,161.49,0.14216157]
[1746737146830,13.92671453,161.56,161.51,0.14216157]
[1746737148447,13.92671453,161.56,161.54,0.14216157]
[1746737148847,27.84998143,161.58,161.54,0.14216157]
[1746737149173,47.3391089,161.6,161.54,0.14216157]
[1746737149743,47.3391089,161.6,161.55,29.2814561]
[1746737149952,19.49257425,161.6,161.56,0.14216157]
[1746737151044,47.32797001,161.64,161.56,0.14216157]
[1746737154360,47.32797001,161.64,161.57,18.64964886]
[1746737154657,27.84021946,161.64,161.57,18.64964886]
[1746737155556,27.83314758,161.68,161.57,18.64964886]
[1746737155557,27.83314758,161.68,161.6,18.64964886]
[1746737155867,27.83314758,161.68,161.61,0.14216157]
[1746737159558,27.83314758,161.68,161.6,18.64964886]
[1746737160772,27.83314758,161.68,161.61,0.14216157]
[1746737160947,27.82931354,161.7,161.65,0.14216157]
[1746737162659,47.2981328,161.74,161.66,18.64964886]
[1746737162850,47.2981328,161.74,161.65,0.14216157]
[1746737164171,75.12056386,161.74,161.65,0.14216157]
[1746737164878,75.12056386,161.74,161.64,18.64964886]
[1746737165777,26.0,161.71,161.64,0.14216157]
[1746737167053,47.30983301,161.7,161.64,0.14216157]
[1746737167670,47.30983301,161.7,161.65,18.64964886]
[1746737168171,19.48051947,161.7,161.66,26.81034886]
[1746737168356,5.5658627,161.7,161.68,18.64964886]
[1746737168960,5.5658627,161.7,161.68,47.93110496]
[1746737169162,19.47756269,161.73,161.68,47.93110496]
[1746737169363,19.47756269,161.73,161.68,18.64964886]
[1746737170572,19.47756269,161.73,161.69,0.14216157]
[1746737170764,19.47756269,161.73,161.71,0.14216157]
[1746737171083,26.0,161.78,161.71,0.14216157]
[1746737171861,47.28351565,161.79,161.71,0.14216157]
[1746737172063,26.0,161.78,161.71,0.14216157]
[1746737172860,52.54373492,161.77,161.71,0.14216157]
[1746737176671,52.54373492,161.77,161.72,18.64964886]
[1746737179372,52.54373492,161.77,161.73,0.14216157]
[1746737179565,52.54373492,161.77,161.73,1.68646157]
[1746737180582,52.54373492,161.77,161.74,18.64964886]
[1746737181583,52.54373492,161.77,161.72,18.64964886]
[1746737181981,52.54373492,161.77,161.71,0.14216157]
[1746737182962,21.63565555,161.77,161.71,0.14216157]
[1746737183163,21.63565555,161.77,161.75,0.14216157]
[1746737183462,21.63565555,161.77,161.74,6.4696]
[1746737184077,15.45403968,161.77,161.74,6.4696]
[1746737187983,15.45403968,161.77,161.75,0.14216157]
[1746737188792,15.45403968,161.77,161.75,18.79181043]
[1746737189091,15.45403968,161.77,161.75,18.64964886]
[1746737191873,15.45403968,161.77,161.73,0.14216157]
[1746737192275,15.45403968,161.77,161.73,18.79181043]
[1746737193096,15.45403968,161.77,161.73,48.07326653]
[1746737193398,15.45403968,161.77,161.76,20.39771043]
[1746737193895,33.99468446,161.79,161.77,18.79181043]
[1746737193896,6.18085172,161.79,161.77,18.79181043]
[1746737194187,6.18085172,161.79,161.78,25.35801043]
[1746737195068,15.45156764,161.8,161.79,18.79181043]
[1746737195275,6.18008775,161.81,161.79,18.79181043]
[1746737197171,21.62832977,161.83,161.79,18.79181043]
[1746737197571,21.62832977,161.83,161.79,130.37326653]
[1746737197767,21.62832977,161.83,161.81,48.07326653]
[1746737197981,6.17932398,161.83,161.82,98.07326653]
[1746737198310,6.17932398,161.83,161.82,99.57636653]
[1746737198517,6.17932398,161.83,161.82,70.29491043]
[1746737199195,30.88615343,161.89,161.82,70.29491043]
[1746737199383,30.88615343,161.89,161.83,18.79181043]
[1746737201374,52.50577168,161.89,161.83,0.14216157]
[1746737201783,52.50577168,161.89,161.83,18.79181043]
[1746737202273,52.50577168,161.89,161.83,0.14216157]
[1746737206023,53.50577168,161.89,161.83,18.79181043]
[1746737207605,22.61961825,161.89,161.87,18.64964886]
[1746737208908,7.17703378,161.89,161.88,0.14216157]
[1746737209409,94.20714776,162.29,161.9,0.14216157]
[1746737209410,231.52,162.0,161.9,0.14216157]
[1746737209718,26.0,161.96,161.9,0.14216157]
[1746737210687,21.61160851,161.95,161.9,0.14216157]
[1746737212412,52.48533496,161.95,161.89,18.64964886]
[1746737213594,46.31058967,161.95,161.89,18.64964886]
[1746737214325,46.31058967,161.95,161.9,0.14216157]
[1746737218015,30.87372645,161.95,161.9,0.14216157]
[1746737219011,30.87372645,161.95,161.89,18.64964886]
[1746737220493,30.87372645,161.95,161.87,18.64964886]
[1746737220706,30.87372645,161.95,161.9,2.1]
[1746737221103,30.87372645,161.95,161.87,18.64964886]
[1746737222198,52.48533496,161.95,161.87,18.64964886]
[1746737222510,83.35906141,161.95,161.87,18.64964886]
[1746737223108,83.35906141,161.95,161.88,0.14216157]
[1746737224095,83.35906141,161.95,161.87,18.64964886]
[1746737225719,83.35906141,161.95,161.88,2.1]
[1746737226622,83.35906141,161.95,161.89,18.64964886]
[1746737227726,83.35906141,161.95,161.9,0.14216157]
[1746737228101,21.61160851,161.95,161.9,50.14216157]
[1746737228414,21.61160851,161.95,161.92,0.14216157]
[1746737228604,30.86668176,161.99,161.94,0.14216157]
[1746737231303,21.60360471,162.01,161.96,94.79181043]
[1746737231626,21.60360471,162.01,161.96,124.08499545]
[1746737232003,21.60360471,162.01,161.96,94.79181043]
[1746737232427,0.1,162.0,161.96,94.79181043]
[1746737232620,30.85128514,162.07,161.96,94.79181043]
[1746737234723,26.0,162.04,161.96,18.64964886]
[1746737235034,26.0,162.03,161.93,18.64964886]
[1746737235231,26.0,162.03,161.94,0.14216157]
[1746737236722,52.46265892,162.02,161.94,0.14216157]
[1746737238214,52.46265892,162.02,161.96,0.14216157]
[1746737239146,52.46265892,162.02,161.95,18.64964886]
[1746737239710,52.46265892,162.02,161.96,0.14216157]
[1746737242415,30.8603876,162.02,161.96,0.14216157]
[1746737242917,30.8603876,162.02,161.95,18.64964886]
[1746737244532,52.46265892,162.02,161.93,18.79181043]
[1746737245537,83.32304652,162.02,161.93,18.64964886]
[1746737245716,84.97454652,162.02,161.93,18.64964886]
[1746737246439,52.47561425,161.98,161.91,1.5058]
[1746737246613,52.47561425,161.98,161.91,18.64964886]
[1746737246813,52.47561425,161.98,161.89,18.64964886]
[1746737247314,52.47561425,161.98,161.88,2.1]
[1746737248225,52.47561425,161.98,161.89,18.64964886]
[1746737248947,83.34362264,161.98,161.89,18.64964886]
[1746737249330,83.34362264,161.98,161.91,18.64964886]
[1746737249525,83.34362264,161.98,161.92,0.14216157]
[1746737250424,61.73601678,161.98,161.92,0.14216157]
[1746737253119,52.46265892,162.02,161.93,18.64964886]
[1746737253729,83.32304652,162.02,161.93,18.64964886]
[1746737256462,83.32304652,162.02,161.9,82.44216157]
[1746737256759,83.32304652,162.02,161.91,18.64964886]
[1746737257261,26.0,161.99,161.91,18.64964886]
[1746737257839,26.0,161.99,161.89,18.64964886]
[1746737259458,52.47561425,161.98,161.89,18.64964886]
[1746737261156,83.34362264,161.98,161.89,18.64964886]
[1746737261661,26.0,161.95,161.88,2.1]
[1746737263350,26.0,161.97,161.89,18.64964886]
[1746737263558,52.48209434,161.96,161.89,18.64964886]
[1746737266847,52.48209434,161.96,161.9,0.14216157]
[1746737267044,21.61027414,161.96,161.91,18.64964886]
[1746737267362,22.61027414,161.96,161.92,0.14216157]
[1746737269460,22.61027414,161.96,161.94,18.64964886]
[1746737272148,22.61027414,161.96,161.93,7.7511]
[1746737273877,22.61027414,161.96,161.94,18.64964886]
[1746737274568,7.17436404,161.96,161.94,68.64964886]
[1746737274944,7.17436404,161.96,161.95,0.14216157]
[1746737277475,30.84597523,162.1,162.01,18.64964886]
[1746737277690,56.84597523,162.1,162.01,47.94283388]
[1746737278447,30.85277057,162.06,162.01,47.94283388]
[1746737279166,21.59294218,162.09,162.02,0.14216157]
[1746737279469,26.0,162.12,162.02,29.43534659]
[1746737279982,153.28654218,162.15,162.04,47.94283388]
[1746737279983,26.0,162.14,162.04,47.94283388]
[1746737280154,26.0,162.14,162.03,18.64964886]
[1746737280468,26.0,162.14,162.04,0.14216157]
[1746737280774,30.84706027,162.09,162.03,18.64964886]
[1746737282875,30.84706027,162.09,162.01,18.64964886]
[1746737287558,30.84706027,162.09,162.02,2.1]
[1746737288859,26.0,162.06,162.02,2.1]
[1746737289391,26.0,162.06,161.98,18.64964886]
[1746737290794,46.28201172,162.05,161.98,18.64964886]
[1746737292600,46.28201172,162.05,161.99,2.1]
[1746737292769,52.45294661,162.05,161.99,2.1]
[1746737293460,52.45294661,162.05,162.0,18.64964886]
[1746737298368,46.28201172,162.05,162.0,18.64964886]
[1746737299892,15.42733724,162.05,162.02,18.64964886]
[1746737300089,15.42733724,162.05,162.04,18.64964886]
[1746737300296,30.8508669,162.07,162.04,18.64964886]
[1746737301999,52.43676742,162.1,162.04,18.64964886]
[1746737302374,30.84515731,162.1,162.04,18.64964886]
[1746737306777,52.42706469,162.13,162.05,0.14216157]
[1746737307010,52.42706469,162.13,162.1,1.6616]
[1746737307993,30.83944982,162.13,162.1,1.6616]
[1746737310694,30.83944982,162.13,162.07,18.64964886]
[1746737312906,30.83944982,162.13,162.06,1.5361]
[1746737315325,30.83944982,162.13,162.07,1.1]
[1746737316400,30.83944982,162.13,162.07,19.74964886]
[1746737319306,30.83944982,162.13,162.08,18.64964886]
[1746737321910,30.83944982,162.13,162.07,19.74964886]
[1746737322211,30.83944982,162.13,162.08,97.94283388]
[1746737322413,30.83944982,162.13,162.08,68.64964886]
[1746737324590,30.83944982,162.13,162.08,18.64964886]
[1746737329603,31.83944982,162.13,162.08,18.64964886]
[1746737329803,31.83944982,162.13,162.08,36.92152205]
[1746737330121,53.42706469,162.13,162.08,18.64964886]
[1746737331318,53.42706469,162.13,162.1,18.64964886]
[1746737331721,22.58761487,162.13,162.1,18.64964886]
[1746737342129,22.58761487,162.13,162.09,88.327]
[1746737342436,22.58761487,162.13,162.09,6.027]
[1746737342622,22.58761487,162.13,162.1,18.64964886]
[1746737346113,22.58761487,162.13,162.09,6.027]
[1746737350039,7.16788996,162.13,162.1,18.64964886]
[1746737351137,1.0,162.13,162.1,68.64964886]
[1746737351330,1.0,162.13,162.1,86.92152205]
[1746737351636,7.16796641,162.13,162.1,68.64964886]
[1746737352244,1.0,162.13,162.1,86.92152205]
[1746737352423,1.0,162.13,162.12,36.92152205]
[1746737352943,1.0,162.13,162.12,169.36368362]
[1746737353240,1.0,162.13,162.12,170.87488362]
[1746737356163,15.41156263,162.22,162.15,18.64964886]
[1746737356352,15.41156263,162.22,162.15,36.92152205]
[1746737356847,15.41156263,162.22,162.15,18.64964886]
[1746737357039,15.41156263,162.22,162.15,36.92152205]
[1746737357644,15.41156263,162.22,162.15,18.64964886]
[1746737357948,15.41156263,162.22,162.15,36.92152205]
[1746737358462,30.81746829,162.25,162.18,18.27187319]
[1746737358617,21.57031923,162.26,162.18,18.27187319]
[1746737358817,21.57031923,162.26,162.17,119.22152205]
[1746737359242,21.57031923,162.26,162.18,18.27187319]
[1746737359732,21.57031923,162.26,162.17,100.94964886]
[1746737359921,21.57031923,162.26,162.18,18.27187319]
[1746737360338,6.164468,162.22,162.18,18.27187319]
[1746737360956,6.164468,162.22,162.18,19.90267319]
[1746737361125,6.164468,162.22,162.19,18.27187319]
[1746737361649,6.164468,162.22,162.18,19.90267319]
[1746737361946,21.57563801,162.22,162.18,19.90267319]
[1746737363351,21.57563801,162.22,162.19,18.27187319]
[1746737363553,21.57563801,162.22,162.18,1.6308]
[1746737363759,6.164468,162.22,162.21,18.27187319]
[1746737365653,6.164468,162.22,162.2,18.27187319]
[1746737366059,6.164468,162.22,162.19,82.3]
[1746737366250,6.164468,162.22,162.19,100.57187319]
[1746737366954,21.57563801,162.22,162.19,82.3]
[1746737367252,15.41117001,162.22,162.19,82.3]
[1746737367463,15.41117001,162.22,162.18,1.6308]
[1746737368553,15.41117001,162.22,162.18,19.90267319]
[1746737368763,15.41117001,162.22,162.18,1.6308]
[1746737369566,30.81854043,162.24,162.18,1.6308]
[1746737370249,30.81854043,162.24,162.16,105.4]
[1746737370450,30.81854043,162.24,162.16,23.1]
[1746737371186,30.81854043,162.24,162.15,6.1303]
[1746737371480,30.81854043,162.24,162.15,24.40217319]
[1746737372572,30.81854043,162.24,162.15,6.1303]
[1746737372868,30.81854043,162.24,162.15,24.40217319]
[1746737373455,30.81854043,162.24,162.15,6.1303]
[1746737373857,30.81854043,162.24,162.13,1.5063]
[1746737374244,36.98224851,162.24,162.13,1.5063]
[1746737374445,33.59462316,162.23,162.13,1.5063]
[1746737376361,52.39797804,162.22,162.13,1.5063]
[1746737376667,52.39797804,162.22,162.1,18.27187319]
[1746737377871,83.22031807,162.22,162.11,18.27187319]
[1746737380173,83.22031807,162.22,162.09,50.0]
[1746737380373,212.84686025,162.22,162.1,18.27187319]
[1746737381161,212.84686025,162.22,162.11,18.27187319]
[1746737381845,212.84686025,162.22,162.1,18.27187319]
[1746737383277,212.84686025,162.22,162.09,132.3]
[1746737383574,212.84686025,162.22,162.1,18.27187319]
[1746737384871,212.84686025,162.22,162.09,132.3]
[1746737385073,212.84686025,162.22,162.1,18.27187319]
[1746737385256,212.84686025,162.22,162.09,132.3]
[1746737385577,6.0085,162.19,162.07,1.6396]
[1746737385753,33.59462316,162.18,162.07,1.6396]
[1746737385960,26.0,162.14,162.07,1.6396]
[1746737386779,26.0,162.16,162.07,1.6396]
[1746737386947,52.4205982,162.15,162.07,1.6396]
[1746737389281,46.253469,162.15,162.07,1.6396]
[1746737389453,46.253469,162.15,162.08,86.92152205]
[1746737389659,46.253469,162.15,162.09,18.27187319]
[1746737389861,46.253469,162.15,162.08,68.64964886]
[1746737390076,46.253469,162.15,162.09,18.27187319]
[1746737391073,46.253469,162.15,162.09,18.41403476]
[1746737391380,30.835646,162.15,162.09,18.41403476]
[1746737391755,31.835646,162.15,162.09,18.41403476]
[1746737393178,53.4205982,162.15,162.09,18.41403476]
[1746737394191,53.4205982,162.15,162.1,18.27187319]
[1746737394863,26.0,162.21,162.2,993.8120932]
[1746737395068,26.0,162.21,162.2,4.57720357]
[1746737395265,32.0085,162.23,162.1,18.27187319]
[1746737395767,77.06060045,162.21,162.1,18.27187319]
[1746737396069,77.06060045,162.21,162.09,18.41403476]
[1746737397557,77.06060045,162.21,162.08,86.92152205]
[1746737398078,26.0,162.2,162.08,86.92152205]
[1746737398468,77.06060045,162.21,162.1,18.27187319]
[1746737398675,77.06060045,162.21,162.11,18.27187319]
[1746737399470,83.22544848,162.21,162.11,18.27187319]
[1746737400587,83.22544848,162.21,162.1,76.0]
[1746737400959,83.22544848,162.21,162.1,26.0]
[1746737401775,77.06060045,162.21,162.1,26.0]
[1746737402469,77.06060045,162.21,162.1,44.27187319]
[1746737403591,77.06060045,162.21,162.1,26.0]
[1746737403888,77.06060045,162.21,162.1,44.27187319]
[1746737404261,77.06060045,162.21,162.1,76.0]
[1746737404470,77.06060045,162.21,162.1,94.27187319]
[1746737404665,77.06060045,162.21,162.11,18.27187319]
[1746737404862,77.06060045,162.21,162.12,18.27187319]
[1746737405081,77.06060045,162.21,162.13,18.41403476]
[1746737405394,77.06060045,162.21,162.14,18.27187319]
[1746737405813,77.06060045,162.21,162.13,18.41403476]
[1746737406168,77.06060045,162.21,162.13,0.14216157]
[1746737406876,77.06060045,162.21,162.12,68.27187319]
[1746737407174,15.41212009,162.21,162.14,18.27187319]
[1746737407376,15.41212009,162.21,162.17,26.53667319]
[1746737407874,30.8133874,162.27,162.17,26.53667319]
[1746737408061,30.8133874,162.27,162.15,37.09]
[1746737408062,30.8133874,162.27,162.16,0.14216157]
[1746737408263,30.8133874,162.27,162.15,30.88573618]
[1746737408464,1.76048564,162.25,162.2,18.27187319]
[1746737408718,8.23744113,162.25,162.18,18.27187319]
[1746737408870,8.23744113,162.25,162.12,22.78]
[1746737409070,8.23744113,162.25,162.14,50.0]
[1746737409380,8.23744113,162.25,162.18,26.0]
[1746737409990,21.57297829,162.24,162.18,26.0]
[1746737410171,8.23744113,162.23,162.15,55.36187319]
[1746737410371,8.23744113,162.22,162.16,0.14216157]
[1746737410784,8.23744113,162.22,162.15,81.36187319]
[1746737411091,8.23744113,162.22,162.15,63.09]
[1746737411390,8.23744113,162.23,162.17,18.41403476]
[1746737411693,21.57297829,162.24,162.19,18.27187319]
[1746737412008,15.40927021,162.24,162.18,26.0]
[1746737412170,15.40927021,162.24,162.19,26.0]
[1746737413083,6.16332819,162.25,162.14,19.4911535]
[1746737413284,6.1618091,162.29,162.15,15.417823]
[1746737413474,16.1618091,162.29,162.15,48.867094]
[1746737413675,16.1618091,162.29,162.15,43.02830837]
[1746737414777,31.56633186,162.29,162.15,43.02830837]
[1746737414996,31.56633186,162.29,162.16,9.76285291]
[1746737415398,31.56633186,162.29,162.15,21.90028648]
[1746737415970,6.1618091,162.29,162.15,6.1059]
[1746737416270,6.1618091,162.29,162.14,116.44889422]
[1746737416697,6.1618091,162.29,162.15,45.54]
[1746737416883,6.1618091,162.29,162.15,95.54]
[1746737417082,10.0,162.29,162.19,0.14216157]
[1746737417300,10.0,162.29,162.19,26.0]
[1746737417978,10.0,162.29,162.2,0.14216157]
[1746737418283,6.1618091,162.29,162.2,0.14216157]
[1746737418467,6.1618091,162.29,162.2,26.14216157]
[1746737418672,6.1618091,162.29,162.2,189.83306158]
[1746737419297,6.16067028,162.32,162.25,0.14216157]
[1746737419496,6.16067028,162.32,162.25,82.44216157]
[1746737420195,6.15953187,162.35,162.27,26.0]
[1746737420396,6.15953187,162.35,162.28,0.14216157]
[1746737420978,6.15953187,162.35,162.29,26.0]
[1746737422377,6.1591525,162.36,162.29,26.0]
[1746737422581,6.1591525,162.36,162.3,0.14216157]
[1746737422790,6.15878222,162.37,162.3,0.14216157]
[1746737422994,1.1296892,162.35,162.3,0.14216157]
[1746737423683,10.0,162.39,162.32,6.52940831]
[1746737423879,6.15687723,162.42,162.35,24.97929141]
[1746737424096,6.15687723,162.42,162.35,24.23695789]
[1746737424279,6.15687723,162.42,162.35,23.86579113]
[1746737424475,6.15687723,162.42,162.35,23.58741606]
[1746737424676,6.15687723,162.42,162.35,23.30904099]
[1746737424902,6.15687723,162.42,162.35,22.75229085]
[1746737425202,0.09279169,162.35,162.31,0.64896129]
[1746737425503,0.09279169,162.35,162.31,81.64987763]
[1746737425679,0.09279169,162.35,162.27,45.48]
[1746737426207,18.74244055,162.35,162.21,22.84]
[1746737426512,18.64964886,162.32,162.21,45.48]
[1746737426701,28.64964886,162.32,162.21,45.48]
[1746737427021,18.64964886,162.32,162.21,45.48]
[1746737427305,18.64964886,162.32,162.22,0.14216157]
[1746737427806,10.0,162.33,162.21,45.48]
[1746737427807,18.64964886,162.33,162.25,0.14216157]
[1746737428311,48.83340789,162.33,162.24,26.0]
[1746737428481,58.83340789,162.33,162.23,6.5891]
[1746737428683,10.0,162.32,162.26,23.98069248]
[1746737428884,14.87616995,162.32,162.26,21.96138496]
[1746737429076,14.87616995,162.32,162.26,15.9034624]
[1746737429077,48.82349679,162.3,162.26,15.9034624]
[1746737429313,48.83340789,162.33,162.24,0.14216157]
[1746737429486,18.64964886,162.31,162.24,0.14216157]
[1746737429687,30.64267194,162.32,162.24,0.14216157]
[1746737429996,30.32201657,162.34,162.24,0.14216157]
[1746737430210,40.32201657,162.34,162.24,0.14216157]
[1746737430401,30.32201657,162.34,162.24,0.14216157]
[1746737430913,46.48230387,162.34,162.24,0.14216157]
[1746737431284,30.32201657,162.34,162.26,25.19086587]
[1746737431486,30.32201657,162.34,162.26,24.62008845]
[1746737431697,36.48209201,162.34,162.26,24.23957017]
[1746737431897,36.48209201,162.34,162.26,24.04931103]
[1746737432080,30.64267194,162.32,162.26,22.52723791]
[1746737432291,30.64267194,162.32,162.26,22.33697877]
[1746737432495,30.64267194,162.32,162.26,21.95646049]
[1746737432796,30.18375903,162.33,162.26,20.62464651]
[1746737432992,30.18375903,162.33,162.26,19.67335081]
[1746737433208,1.1296892,162.32,162.27,0.32014759]
[1746737433513,1.1296892,162.32,162.27,0.12988845]
[1746737433703,1.1296892,162.32,162.26,182.27323948]
[1746737433884,1.1296892,162.32,162.26,100.88233947]
[1746737434087,1.1296892,162.32,162.26,100.69208033]
[1746737434417,1.1296892,162.32,162.26,99.93104377]
[1746737434586,1.1296892,162.32,162.26,98.78948893]
[1746737434791,1.1296892,162.32,162.26,98.40897065]
[1746737435009,1.1296892,162.32,162.26,98.21871151]
[1746737435207,1.1296892,162.32,162.26,98.02845237]
[1746737435405,1.1296892,162.32,162.26,96.88689753]
[1746737435626,1.1296892,162.32,162.26,96.69663839]
[1746737435932,1.1296892,162.32,162.26,96.12586097]
[1746737436116,7.29042384,162.32,162.26,95.74534269]
[1746737436309,1.1296892,162.32,162.26,95.36482441]
[1746737436627,1.1296892,162.32,162.26,162.66021745]
[1746737436806,1.1296892,162.32,162.26,161.51866261]
[1746737436999,1.1296892,162.32,162.26,160.94788519]
[1746737437202,1.1296892,162.32,162.26,160.75762605]
[1746737437708,31.77236114,162.32,162.26,159.42581207]
[1746737437904,31.77236114,162.32,162.26,158.85503465]
[1746737438214,31.77236114,162.32,162.26,158.28425723]
[1746737438411,31.77236114,162.32,162.26,158.09399809]
[1746737438622,31.77236114,162.32,162.26,157.71347981]
[1746737438924,31.77236114,162.32,162.26,156.95244325]
[1746737439128,31.77236114,162.32,162.26,156.57192497]
[1746737439334,31.77236114,162.32,162.26,156.00114755]
[1746737439507,31.77236114,162.32,162.26,155.62062927]
[1746737439702,34.98625557,162.32,162.26,155.04985185]
[1746737439909,34.98625557,162.32,162.26,154.09855615]
[1746737440237,34.98625557,162.32,162.26,153.71803787]
[1746737440405,34.98625557,162.32,162.26,152.76674217]
[1746737440729,31.77236114,162.32,162.26,149.97530198]
[1746737441222,1.1296892,162.32,162.26,147.88245144]
[1746737441415,30.0728867,162.4,162.29,37.09]
[1746737441608,30.96905566,162.38,162.3,22.81228172]
[1746737441808,30.96905566,162.38,162.3,22.2415043]
[1746737442019,50.2184501,162.37,162.3,21.86098602]
[1746737442218,1.1296892,162.36,162.3,21.09994946]
[1746737442431,1.1296892,162.36,162.3,168.22136434]
[1746737442630,1.1296892,162.36,162.3,167.84084606]
[1746737442936,1.1296892,162.36,162.3,167.65051911]
[1746737443243,1.1296892,162.36,162.3,166.27060756]
[1746737443410,1.1296892,162.36,162.3,165.509571]
[1746737443610,31.22025892,162.36,162.3,165.31931186]
[1746737444107,18.64964886,162.35,162.3,47.57641525]
[1746737444332,18.64964886,162.33,162.27,23.44]
[1746737444528,1.1296892,162.33,162.25,40.59663694]
[1746737445043,18.64964886,162.37,162.28,25.23896344]
[1746737445336,18.64964886,162.37,162.28,145.99465227]
[1746737445534,55.2477272,162.37,162.28,145.61413399]
[1746737445708,55.2477272,162.37,162.28,145.04335657]
[1746737445910,55.2477272,162.37,162.28,144.85309743]
[1746737446309,49.0887609,162.37,162.28,144.47257915]
[1746737446548,49.0887609,162.37,162.28,144.09206087]